Cogmind - Beta 14 X2 @@@ ROGUE MODE // 2024.08.02 @ 00:01:19 Player: Schmee Result: Destroyed by C-35 Carver with Carbide Saw Performance ------------- Evolutions (6) 3000 Regions Visited (13) 2600 Robots Destroyed (173) 865 Value Destroyed (6098) 6098 Prototype IDs (16) 320 Alien Tech Used (0) 0 Bonus (2413) 2413 TOTAL SCORE: 15296 Bonus ------- High Alert Combat Kills 1230 Follower Combat Kills 583 Registered with UFD 300 Met Data Miner 300 Cogmind --------- Core Integrity 0/1150 Matter 72/300 Energy 100/100 System Corruption 7% Temperature Cool (0) Movement Core (50) Location -4/Factory Parts ------- > --- POWER (2) -------- (None) > --- PROPULSION (6) --- (None) > --- UTILITY (8) ------ (None) > --- WEAPON (3) ------- (None) > --- INVENTORY (5) ---- Heavy Reflective Plating Improved System Restoration Module Railgun Hypervelocity Mass Driver Peak State ------------ > --- POWER ------------ Neutrino Core Reinforced Fission Core > --- PROPULSION ------- Light Treads Improved Treads Improved Treads Improved Medium Treads Heavy Treads > --- UTILITY ---------- Scrap Suit Advanced Cooling System Huge Storage Unit Core Analyzer Armor Integrity Analyzer Advanced Thermal Shield Improved System Restoration Module > --- WEAPON ----------- KE Penetrator KE Penetrator Railgun > --- INVENTORY -------- Improved Ion Engine Neutrino Core Neutrino Core Overtuned Huge Scrapsphere Advanced Cooling System Advanced Cooling System Advanced Cooling System Advanced Cooling System High-capacity Matter Pod Recoil Nullifier Advanced ECM Suite Heavy Reflective Plating Heavy Reflective Plating Improved Shield Generator High-powered Tractor Beam Plasma Rifle Heavy Plasma Cannon Coil Gun Hypervelocity Mass Driver Improved Proton Missile Launcher Missile Launcher CPS Tube [Rating: 100] Favorites ----------- Power F-cell Engine Engine F-cell Engine Power Core Reinforced Fission Core Propulsion Light Treads Treads Light Treads Leg Aluminum Leg Wheel Compact Wheel Utility Huge Storage Unit Device Scrap Suit Storage Huge Storage Unit Processor Targeting Computer Protection Layered Medium Armor Plating Weapon Improved Light Cannon Energy Gun Overtuned Pulse Rifle Energy Cannon Ion Cannon Ballistic Gun Overtuned Coil Gun Ballistic Cannon Improved Light Cannon Launcher Long-range Missile Launcher Special Weapon Junk Cannon Build | -11 -10 -9 -9 -9 -9 -6 -6 -6 -6 -5 -5 -5 -4 ------- Run | Yrd Mat Mat Sto Rec Scr Fac Low Low Dat Pro Fac Ext Fac Slots Evolved 12 | . . 2 . . . 6 . . . . 2 . 2 Power 1 | . . . . . . . . . . . . . 1 Propulsion 4 | . . 2 . . . 1 . . . . 1 . . Utility 6 | . . . . . . 4 . . . . 1 . 1 Weapon 1 | . . . . . . 1 . . . . . . . Parts Attached 149 | . 13 13 13 1 12 19 3 4 . 6 8 35 22 Power 10 | . 2 3 1 . . . . 1 . . . 1 2 Engine 7 | . 1 3 1 . . . . 1 . . . . 1 Core 3 | . 1 . . . . . . . . . . 1 1 Reactor . | . . . . . . . . . . . . . . Propulsion 40 | . 3 8 5 . 4 2 3 1 . 1 1 10 2 Treads 32 | . 2 7 5 . 1 1 2 1 . 1 1 10 1 Leg 1 | . . . . . . . 1 . . . . . . Wheel 7 | . 1 1 . . 3 1 . . . . . . 1 Hover . | . . . . . . . . . . . . . . Flight . | . . . . . . . . . . . . . . Utility 35 | . 3 . . . 1 7 . . . 4 2 7 11 Device 16 | . . . . . . 5 . . . 2 2 1 6 Storage 1 | . 1 . . . . . . . . . . . . Processor 4 | . 1 . . . . . . . . 1 . 2 . Hackware . | . . . . . . . . . . . . . . Protection 14 | . 1 . . . 1 2 . . . 1 . 4 5 Artifact . | . . . . . . . . . . . . . . Weapon 64 | . 5 2 7 1 7 10 . 2 . 1 5 17 7 Energy Gun 9 | . . . . . . 4 . 1 . . . 3 1 Energy Cannon 16 | . . . 1 1 4 3 . . . . 1 3 3 Ballistic Gun 17 | . . . 1 . 1 3 . . . . 3 8 1 Ballistic Cannon 11 | . 5 2 3 . 1 . . . . . . . . Launcher 10 | . . . 2 . . . . 1 . 1 1 3 2 Special Weapon 1 | . . . . . 1 . . . . . . . . Impact Weapon . | . . . . . . . . . . . . . . Slashing Weapon . | . . . . . . . . . . . . . . Piercing Weapon . | . . . . . . . . . . . . . . Special Melee Weapon . | . . . . . . . . . . . . . . Unidentified Prototypes 3 | . . . 2 . 1 . . . . . . . . Parts Lost 31 | . 1 1 1 . . . . 1 . 2 . 13 12 Power 3 | . 1 . . . . . . 1 . . . . 1 Propulsion 13 | . . 1 1 . . . . . . 1 . 6 4 Utility 11 | . . . . . . . . . . 1 . 4 6 Weapon 4 | . . . . . . . . . . . . 3 1 Highest Loss Streak 7 | . 1 1 1 . . . . 1 . 1 . 3 7 To Critical Strikes . | . . . . . . . . . . . . . . Average Slot Usage (%) 96 | . 98 98 99 100 99 92 92 93 93 93 92 90 77 Engine 7 | . 2 11 10 11 11 6 6 6 6 6 5 . . Core 1 | . 11 . . . . . . . . . . 4 8 Treads 28 | . 13 25 41 44 33 19 19 20 20 20 23 22 20 Wheel 9 | . 13 17 2 . 10 13 13 13 13 13 11 8 . Device 5 | . . . . . . 19 20 20 20 13 9 9 13 Storage 9 | . 14 11 11 11 11 6 6 6 6 6 5 5 4 Processor 7 | . 11 11 11 11 7 . . . . 4 5 8 9 Protection 3 | . 1 . . . 3 6 6 6 6 6 11 8 4 Energy Gun 1 | . . . . . . 3 6 5 6 6 5 1 . Energy Cannon 5 | . . . 4 11 12 2 . . . . 1 3 1 Ballistic Gun 4 | . 6 . 1 . . 13 13 13 13 6 8 10 12 Ballistic Cannon 9 | . 21 21 15 11 9 . . . . . . . . Naked Turns 42 | . . . . . . . . . . . . . 42 Heaviest Build 152 | 10 93 95 102 102 116 128 121 121 119 122 127 141 152 Greatest Support 166 | 20 20 60 80 80 80 63 24 63 24 24 83 166 166 Greatest Overweight (x) 17 | . 9 9 9 1 14 5 5 5 4 5 5 17 6 Average Overweight (x) 4 | . 7 4 1 1 6 4 5 4 4 4 4 5 . Largest Inventory Capacity 25 | . 25 25 25 25 25 25 25 25 25 25 25 25 25 Average Capacity 24 | . 24 25 25 25 25 25 25 25 25 25 25 25 23 Most Carried 25 | . 25 25 25 25 25 25 23 23 23 23 22 25 25 Average Carried 23 | . 17 24 24 25 24 23 22 22 23 22 21 23 23 Final Capacity 25 | 8 25 25 25 25 25 25 25 25 25 25 25 25 5 Final Carried 25 | 6 24 24 25 25 25 24 23 23 23 22 21 24 5 Class Distribution -------------------- 64% | Mutant 17% | Scrapper 9% | Scavenger-Gunner 6% | Scavenger-Scrapper Dominant Class ---------------- Mutant | -10/Materials Mutant | -9/Materials Mutant | -9/Storage Mutant | -9/Recycling Mutant | -9/Scraptown Scrapper | -6/Factory Scrapper | -6/Lower Caves Scrapper | -6/Lower Caves Scrapper | -6/Data Miner Scrapper | -5/Proximity Caves Scavenger-Scrapper | -5/Factory Scavenger-Gunner | -5/Extension Scavenger-Gunner | -4/Factory Resources | -11 -10 -9 -9 -9 -9 -6 -6 -6 -6 -5 -5 -5 -4 ----------- Run | Yrd Mat Mat Sto Rec Scr Fac Low Low Dat Pro Fac Ext Fac Matter Collected 4633 | 200 292 852 485 85 186 164 137 175 . 74 351 1242 390 Remotely . | . . . . . . . . . . . . . . Salvage Created 6238 | . 342 921 615 94 . 226 . 386 . 105 395 1945 1209 Parts 337 | . 26 74 48 7 . 12 . 10 . 3 19 84 54 Haulers Intercepted 11 | . 1 4 4 . . . . . . . 1 . 1 Recyclers Shooed 4 | . . . . . . . . . . . . . 4 Parts Field Recycled . | . . . . . . . . . . . . . . Retrieved Matter . | . . . . . . . . . . . . . . Parts Self-Destructed 27 | . . . . . . . 14 10 . 3 . . . Prevented . | . . . . . . . . . . . . . . Kills | -11 -10 -9 -9 -9 -9 -6 -6 -6 -6 -5 -5 -5 -4 ------- Run | Yrd Mat Mat Sto Rec Scr Fac Low Low Dat Pro Fac Ext Fac Combat Hostiles Destroyed 129 | . 10 27 13 1 . 3 . 8 . 7 6 37 17 Guns 40 | . 1 . 1 . . 3 . 6 . 1 2 20 6 Cannons 50 | . 9 27 9 1 . . . . . . . 3 1 AOE 37 | . . . 3 . . . . 2 . 6 4 12 10 Classes Destroyed 17 | . 6 3 . 1 . . . 1 . 1 . 5 . Worker 6 | . . 2 2 . . . . . . . . . 2 Builder 12 | . . 2 1 . . . . . . . 2 4 3 Tunneler 1 | . 1 . . . . . . . . . . . . Hauler 11 | . 1 4 4 . . . . . . . 1 . 1 Recycler 4 | . . . . 1 . . . . . . 1 . 2 Operator 4 | . 1 2 . . . 1 . . . . . . . Drone 2 | . . . . . . . . . . 2 . . . Watcher 6 | . 2 3 1 . . . . . . . . . . Swarmer 28 | . 4 8 3 . . . . . . . 4 2 7 Saboteur 1 | . . . . . . . . . . . . 1 . Grunt 58 | . 6 15 4 . . . . 7 . 5 2 18 1 Brawler 3 | . . . . . . . . 1 . . . 1 1 Duelist 3 | . . . . . . . . . . . . 1 2 Sentry 20 | . . 4 6 1 . 3 . . . . . 6 . Hunter 6 | . . . . . . . . . . . . 2 4 Programmer 4 | . . . . . . . . . . . . 2 2 Behemoth 2 | . . . . . . . . . . . . 2 . Decomposer 1 | . . . . . . . . 1 . . . . . Thug 1 | . . . . . . . . . . . . 1 . Savage 1 | . . . . . . . . . . . . 1 . Best Kill Streak 12 | . 4 8 6 1 . 2 . 4 . 5 5 12 9 Combat Bots Only 11 | . 3 7 5 1 . 2 . 4 . 5 4 11 7 Max Kills in Single Turn 5 | . 2 2 2 1 . 1 . 2 . 3 3 3 5 Gunslinging . | . . . . . . . . . . . . . . Exploded 4 | . . . 2 . . . . 1 . 3 3 3 4 Melee . | . . . . . . . . . . . . . . Uniques/NPCs Destroyed . | . . . . . . . . . . . . . . Combat | -11 -10 -9 -9 -9 -9 -6 -6 -6 -6 -5 -5 -5 -4 -------- Run | Yrd Mat Mat Sto Rec Scr Fac Low Low Dat Pro Fac Ext Fac Hostile Shots Fired 718 | . 45 63 51 8 . 15 1 87 . 24 19 150 255 Missed 218 | . 15 16 18 1 . 4 . 21 . 10 10 41 82 Damage Taken 9513 | . 335 532 522 101 . 71 . 826 . 332 140 2398 4256 Core 1634 | . 37 82 99 29 . 9 . 93 . . 12 114 1159 Absorbed by Shields . | . . . . . . . . . . . . . . Redirected to Shielding 138 | . 9 . . . . . . . . . . . 129 Ignored by Resistances 377 | . . . . . . 9 . 103 . 24 6 216 19 Regen/Repaired (Parts) 1162 | . . 360 87 . 570 10 . 7 . . 11 94 23 Core Remaining (%) 81 | 100 85 . . . 47 . . . . 88 . 87 . Volleys Fired 334 | . 35 69 40 5 . 9 3 14 . 15 18 76 50 Largest 3 | . 2 2 2 2 . 3 3 3 . 3 3 3 3 Hottest 300 | . 78 78 99 99 . 152 152 152 . 152 210 210 300 Shots Fired 728 | . 70 133 78 10 . 21 9 36 . 27 40 194 110 Gun 359 | . 18 . 5 . . 17 9 33 . 18 29 150 80 Cannon 326 | . 52 133 70 10 . 4 . . . . 7 32 18 Launcher 43 | . . . 3 . . . . 3 . 9 4 12 12 Special . | . . . . . . . . . . . . . . Kinetic 544 | . 70 133 57 6 . 12 6 22 . 12 18 130 78 Thermal 141 | . . . 18 4 . 9 3 11 . 6 18 52 20 Explosive 40 | . . . 3 . . . . 3 . 9 4 12 9 Electromagnetic 3 | . . . . . . . . . . . . . 3 Robot Hit Streak 19 | . 4 13 10 5 . 8 6 12 . 2 5 13 19 Robot Miss Streak 9 | . 3 3 2 3 . 2 2 3 . 9 3 3 4 Penetration Max 1 | . . . . . . . . . . . 1 1 1 Secondary Targets 2 | . . . . . . . . 1 . . . . 1 Max Gunslinging Chain 1 | . . . . . . . . 1 . . . . 1 Shots Hit Robots 452 | . 36 88 46 5 . 13 6 24 . 6 23 129 76 Core Hits 308 | . 20 45 22 3 . 6 1 19 . 16 15 98 63 Critical Kills 9 | . . . . . . 2 . 2 . . 2 1 2 Critical Parts Destroyed 5 | . . . . . . . 1 . . . 1 1 2 Critical Strikes 25 | . . 4 2 . . 3 2 2 . . 4 4 4 Burn 5 | . . . . . . 1 1 . . . 1 2 . Destroy 14 | . . . . . . 2 1 2 . . 3 2 4 Blast 6 | . . 4 2 . . . . . . . . . . Melee Attacks . | . . . . . . . . . . . . . . Impact . | . . . . . . . . . . . . . . Slashing . | . . . . . . . . . . . . . . Piercing . | . . . . . . . . . . . . . . Sneak Attacks . | . . . . . . . . . . . . . . Combat Hostiles . | . . . . . . . . . . . . . . Follow-up Attacks . | . . . . . . . . . . . . . . Damage Inflicted 16996 | . 584 1994 1305 109 . 349 153 1142 . 906 1112 5737 3605 Guns 6146 | . 80 . 40 . . 326 153 602 . 70 539 2805 1531 Cannons 4978 | . 504 1968 936 109 . 23 . . . . 32 852 554 Explosions 5771 | . . . 317 . . . . 540 . 836 541 2051 1486 Melee . | . . . . . . . . . . . . . . Ramming 101 | . . 26 12 . . . . . . . . 29 34 Kinetic 8522 | . 584 1968 651 64 . 287 128 492 . 22 392 2427 1507 Thermal 2686 | . . . 325 45 . 62 25 110 . 48 179 1230 662 Explosive 5345 | . . . 317 . . . . 540 . 836 541 2051 1060 Electromagnetic 342 | . . . . . . . . . . . . . 342 Impact . | . . . . . . . . . . . . . . Slashing . | . . . . . . . . . . . . . . Piercing . | . . . . . . . . . . . . . . Highest Corruption 7 | . . . 4 4 4 . . . . . . . 7 Average Corruption 3 | . . . 3 4 4 . . . . . . . 3 Corruption Purged 2 | . . . . . . . . . . . . . 2 Corruption Blocked . | . . . . . . . . . . . . . . Effects 69 | . . . 31 34 1 . . . . . . . 3 Message Errors 12 | . . . 6 6 . . . . . . . . . Matter Fused 22 | . . . 10 11 1 . . . . . . . . Heat Flow Errors 8 | . . . 3 4 . . . . . . . . 1 Energy Discharges 7 | . . . 4 3 . . . . . . . . . Parts Rejected 3 | . . . 1 1 . . . . . . . . 1 Parts Fused 3 | . . . 2 1 . . . . . . . . . Data Loss (minor) 5 | . . . 1 4 . . . . . . . . . Data Loss (major) 3 | . . . 1 2 . . . . . . . . . Misfires 4 | . . . 2 1 . . . . . . . . 1 Alerts 2 | . . . 1 1 . . . . . . . . . Overload Shots . | . . . . . . . . . . . . . . Overflow Damage 207 | . . 57 5 . . . . . . 45 35 44 21 Projectiles 67 | . . 57 5 . . . . . . . 2 . 3 Explosions 140 | . . . . . . . . . . 45 33 44 18 Melee . | . . . . . . . . . . . . . . Knockbacks 12 | . 4 7 1 . . . . . . . . . . Impact . | . . . . . . . . . . . . . . Kinetic 12 | . 4 7 1 . . . . . . . . . . Secondary . | . . . . . . . . . . . . . . Self-Inflicted Damage 195 | . . 13 . . . . . . . 14 . 77 91 Shots 6 | . . . . . . . . . . 1 . 2 3 Rammed 13 | . . 4 1 . . . . . . . . 3 5 Targets Rammed 13 | . . 4 1 . . . . . . . . 3 5 Kicked . | . . . . . . . . . . . . . . Crushed . | . . . . . . . . . . . . . . Highest Temperature 392 | . 78 156 241 194 . 166 248 383 . 392 348 360 208 Average Temperature 62 | . 27 35 51 85 . 77 127 168 . 197 131 74 49 Received Heat Transfer 1650 | . 123 153 105 36 . 18 . 225 . 75 27 495 393 Siege Activations . | . . . . . . . . . . . . . . Robots Corrupted . | . . . . . . . . . . . . . . Combat Hostiles . | . . . . . . . . . . . . . . Parts Fried . | . . . . . . . . . . . . . . Impact Corruptions . | . . . . . . . . . . . . . . Robots Melted 1 | . . . . . . . . . . . . 1 . Combat Hostiles 1 | . . . . . . . . . . . . 1 . Parts Melted 6 | . . . . . . 1 . . . . . 4 1 Heat Transferred 4789 | . . . 518 74 . 237 150 250 . 100 500 2326 634 Parts Sabotaged 1 | . . . . . . . . . . . . . 1 Parts Stolen 1 | . . . . . . . 1 . . . . . . Parts Stripped . | . . . . . . . . . . . . . . Power Chain Reactions 1 | . . . . . . . . . . . . . 1 Alert | -11 -10 -9 -9 -9 -9 -6 -6 -6 -6 -5 -5 -5 -4 ------- Run | Yrd Mat Mat Sto Rec Scr Fac Low Low Dat Pro Fac Ext Fac Peak Influence 1063 | . 225 615 617 66 . 175 . . . . 707 1051 1063 Initial 513 | . . 54 211 60 . . . . . . 513 304 497 Average 320 | . 85 350 299 11 . 80 . . . . 608 642 719 Maximum Alert Level 3 | . 1 2 2 . . . . . . . 3 3 3 Low Security (%) 42 | . 89 25 7 100 . 100 . . . . . . . Level 1 20 | . 10 33 76 . . . . . . . . 13 . Level 2 25 | . . 40 16 . . . . . . . 82 56 30 Level 3 11 | . . . . . . . . . . . 17 30 69 Level 4 . | . . . . . . . . . . . . . . Level 5 . | . . . . . . . . . . . . . . High Security . | . . . . . . . . . . . . . . Max Security . | . . . . . . . . . . . . . . Squads Dispatched 25 | . 1 5 1 . . 1 . . . . 2 6 9 Investigation 4 | . . 2 . . . . . . . . . . 2 Extermination 2 | . . . . . . 1 . . . . . . 1 Reinforcement 13 | . 1 3 1 . . . . . . . 2 3 3 Assault 6 | . . . . . . . . . . . . 3 3 Garrison . | . . . . . . . . . . . . . . Intercept . | . . . . . . . . . . . . . . Searches Triggered 1 | . . . . . . . . . . . 1 . . Construction Impeded 3 | . . . . . . . . . . . 1 1 1 Haulers Reinforced 1 | . . . . . . . . . . . 1 . . Active Scanning Responses . | . . . . . . . . . . . . . . Cargo Convoy Interrupts . | . . . . . . . . . . . . . . Stealth | -11 -10 -9 -9 -9 -9 -6 -6 -6 -6 -5 -5 -5 -4 --------- Run | Yrd Mat Mat Sto Rec Scr Fac Low Low Dat Pro Fac Ext Fac Distress Signals 15 | . 3 3 3 . . . . . . . . 3 3 Communications Jammed . | . . . . . . . . . . . . . . Distress Signals . | . . . . . . . . . . . . . . Times Spotted 207 | . 19 39 20 1 . 6 2 8 . 9 9 50 44 Peak Tracking Total 17 | . 4 7 6 1 . 2 2 4 . 4 4 6 17 Tactical Retreats 13 | . . 2 1 . . . . 1 . . 1 6 2 Traps | -11 -10 -9 -9 -9 -9 -6 -6 -6 -6 -5 -5 -5 -4 ------- Run | Yrd Mat Mat Sto Rec Scr Fac Low Low Dat Pro Fac Ext Fac Traps Triggered 11 | . . 1 3 . . 6 . . . . . 1 . Indirectly . | . . . . . . . . . . . . . . Trap Hack Attempts . | . . . . . . . . . . . . . . Triggered . | . . . . . . . . . . . . . . Disarmed . | . . . . . . . . . . . . . . Reprogrammed 6 | . . . . . . 6 . . . . . . . Reused 1 | . . . . . . 1 . . . . . . . Traps Extracted . | . . . . . . . . . . . . . . Installed . | . . . . . . . . . . . . . . Triggered 3 | . . . . . . 1 . . . 2 . . . Machines | -11 -10 -9 -9 -9 -9 -6 -6 -6 -6 -5 -5 -5 -4 ---------- Run | Yrd Mat Mat Sto Rec Scr Fac Low Low Dat Pro Fac Ext Fac Machines Disabled 24 | . 1 . 4 . . 3 2 . . . 1 6 7 Max in Single Turn 2 | . 1 . 1 . . 2 1 . . . 1 1 1 Garrison Access 1 | . . . . . . . . . . . . . 1 Energy Cycler 2 | . . . . . . . . . . . . 2 . Machines Repaired . | . . . . . . . . . . . . . . Machines Dismantled . | . . . . . . . . . . . . . . Machines Sabotaged . | . . . . . . . . . . . . . . Overloaded Fab Kills . | . . . . . . . . . . . . . . Hacking | -11 -10 -9 -9 -9 -9 -6 -6 -6 -6 -5 -5 -5 -4 --------- Run | Yrd Mat Mat Sto Rec Scr Fac Low Low Dat Pro Fac Ext Fac Machines Accessed 38 | . 3 8 8 5 2 4 . . 4 . . 2 2 Terminals 26 | . 3 5 7 5 . 4 . . . . . 2 . Fabricators . | . . . . . . . . . . . . . . Repair Stations 4 | . . 2 1 . . . . . . . . . 1 Recycling Units 1 | . . . . . . . . . . . . . 1 Scanalyzers 1 | . . 1 . . . . . . . . . . . Garrison Access . | . . . . . . . . . . . . . . Total Hacks 123 | . 9 28 18 14 5 13 . . 25 . . 7 4 Successful 76 | . 1 16 13 3 5 9 . . 25 . . 2 2 Failed 47 | . 8 12 5 11 . 4 . . . . . 5 2 Catastrophic 11 | . 1 3 1 1 . 1 . . . . . 2 2 Database Lockouts . | . . . . . . . . . . . . . . Manual 50 | . 9 9 6 12 . 9 . . . . . 4 1 Terminals 68 | . 9 11 14 14 . 13 . . . . . 7 . Fabricators . | . . . . . . . . . . . . . . Repair Stations 23 | . . 16 4 . . . . . . . . . 3 Recycling Units 1 | . . . . . . . . . . . . . 1 Scanalyzers 1 | . . 1 . . . . . . . . . . . Garrison Access . | . . . . . . . . . . . . . . Terminal Hacks 55 | . 1 3 8 3 5 8 . . 25 . . 2 . Record 12 | . . . . . 5 . . . 7 . . . . Part Schematic 11 | . . 1 . . . . . . 10 . . . . Robot Schematic 5 | . . . . . . . . . 5 . . . . Robot Analysis 4 | . 1 1 . . . 2 . . . . . . . Prototype ID Bank 4 | . . . . 1 . . . . 3 . . . . Open Door 3 | . . . 2 . . . . . . . . 1 . Branch Access Points 2 | . . 1 . . . 1 . . . . . . . Terminal Index 3 | . . . 1 1 . 1 . . . . . . . Recycling Unit Index 1 | . . . . . . 1 . . . . . . . Alert Level 5 | . . . 3 . . 2 . . . . . . . Unreport Threat 4 | . . . 2 1 . . . . . . . 1 . Reprogram Traps 1 | . . . . . . 1 . . . . . . . Fabricator Hacks . | . . . . . . . . . . . . . . Repair Station Hacks 16 | . . 11 4 . . . . . . . . . 1 Scan Component 9 | . . 6 2 . . . . . . . . . 1 Repair 7 | . . 5 2 . . . . . . . . . . Recycling Unit Hacks . | . . . . . . . . . . . . . . Scanalyzer . | . . . . . . . . . . . . . . Garrison Access Hacks . | . . . . . . . . . . . . . . Unauthorized Hacks 5 | . . 2 1 . . 1 . . . . . . 1 Terminals 3 | . . 1 1 . . 1 . . . . . . . Botnet 3 | . . 1 1 . . 1 . . . . . . . Fabricators . | . . . . . . . . . . . . . . Repair Stations 1 | . . . . . . . . . . . . . 1 Recycling Units . | . . . . . . . . . . . . . . Scrapoids 1 | . . . . . . . . . . . . . 1 Scanalyzers 1 | . . 1 . . . . . . . . . . . Extract 1 | . . 1 . . . . . . . . . . . Garrison Access . | . . . . . . . . . . . . . . Data Cores Recovered 3 | . 1 1 . . . 1 . . . . . . . Used 1 | . . . . . . 1 . . . . . . . Hacking Detections 28 | . 3 7 7 5 . 3 . . . . . 2 1 Full Trace Events 3 | . 1 1 . . . . . . . . . . 1 Feedback Events . | . . . . . . . . . . . . . . Feedback Blocked . | . . . . . . . . . . . . . . Robot Schematics Acquired 5 | . . . . . . . . . 5 . . . . Robots Built . | . . . . . . . . . . . . . . Authchips . | . . . . . . . . . . . . . . Time . | . . . . . . . . . . . . . . Total Robot Build Rating . | . . . . . . . . . . . . . . Part Schematics Acquired 15 | . . 5 . . . . . . 10 . . . . Parts Built . | . . . . . . . . . . . . . . Authchips . | . . . . . . . . . . . . . . Time . | . . . . . . . . . . . . . . Total Part Build Rating . | . . . . . . . . . . . . . . Parts Repaired 7 | . . 5 2 . . . . . . . . . . Time 200 | . . 142 58 . . . . . . . . . . Parts Recycled . | . . . . . . . . . . . . . . Recycled Matter . | . . . . . . . . . . . . . . Retrieved Matter . | . . . . . . . . . . . . . . Retrieved Components . | . . . . . . . . . . . . . . Parts Scanalyzed . | . . . . . . . . . . . . . . Part Schematics Acquired . | . . . . . . . . . . . . . . Parts Damaged . | . . . . . . . . . . . . . . Bothacking | -11 -10 -9 -9 -9 -9 -6 -6 -6 -6 -5 -5 -5 -4 ------------ Run | Yrd Mat Mat Sto Rec Scr Fac Low Low Dat Pro Fac Ext Fac Used RIF Installer . | . . . . . . . . . . . . . . Robots Hacked . | . . . . . . . . . . . . . . Non-combat . | . . . . . . . . . . . . . . Combat . | . . . . . . . . . . . . . . Robot Hacks Applied . | . . . . . . . . . . . . . . Relay Couplers Released 2 | . . . . . . . . . . . . . 2 Machine Destruction 2 | . . . . . . . . . . . . . 2 Fabnet Peak Effective % . | . . . . . . . . . . . . . . Robots Rewired 10 | . . . . . . . . . . . . 10 . Allies Hacked 1 | . . . . . . . . . . . . 1 . Hacks Repelled . | . . . . . . . . . . . . . . Allies | -11 -10 -9 -9 -9 -9 -6 -6 -6 -6 -5 -5 -5 -4 -------- Run | Yrd Mat Mat Sto Rec Scr Fac Low Low Dat Pro Fac Ext Fac Total Allies 20 | . . . . . . . . . . . . 15 5 Largest Group 9 | . . . . . . . . . . . . 9 7 Highest-Rated Group 305 | . . . . . . . . . . . . 256 305 Highest-Rated Ally 47 | . . . . . . . . . . . . 39 47 Total Orders . | . . . . . . . . . . . . . . Ally Attacks 154 | . . . . . . . . . . . . 105 49 Total Damage 2695 | . . . . . . . . . . . . 1699 996 Kills 23 | . . . . . . . . . . . . 12 11 Allies Corrupted . | . . . . . . . . . . . . . . Allies Melted 1 | . . . . . . . . . . . . 1 . Intel | -11 -10 -9 -9 -9 -9 -6 -6 -6 -6 -5 -5 -5 -4 ------- Run | Yrd Mat Mat Sto Rec Scr Fac Low Low Dat Pro Fac Ext Fac Robot Analysis Total 4 | . 1 1 . . . 2 . . . . . . . Derelict Logs Recovered 5 | . . . . . . . 3 1 . 1 . . . Drone Launches . | . . . . . . . . . . . . . . Drone Recoveries . | . . . . . . . . . . . . . . Exploration | -11 -10 -9 -9 -9 -9 -6 -6 -6 -6 -5 -5 -5 -4 ------------- Run | Yrd Mat Mat Sto Rec Scr Fac Low Low Dat Pro Fac Ext Fac Turns Passed 14276 | . 1101 1506 1222 1177 4353 878 672 467 140 359 378 1299 724 Spaces Moved 6846 | 1 454 620 409 484 2183 495 448 308 105 239 217 507 376 Core 82 | . . . . . . . . . . . . . 82 Treads 1537 | . . 96 359 484 85 94 . 5 . . 18 117 279 Legs 46 | 1 45 . . . . . . . . . . . . Wheels 5181 | . 409 524 50 . 2098 401 448 303 105 239 199 390 15 Hover . | . . . . . . . . . . . . . . Flight . | . . . . . . . . . . . . . . Fastest Speed 50 | 120 120 140 215 240 175 145 145 133 133 133 133 145 50 Average Speed 182 | 120 199 165 236 240 197 163 145 141 133 133 149 178 136 Slowest Speed 320 | 120 215 320 240 240 240 240 145 240 133 145 240 240 240 Overloaded Moves . | . . . . . . . . . . . . . . Propulsion Burnouts . | . . . . . . . . . . . . . . Robots Hopped . | . . . . . . . . . . . . . . Cave-ins Triggered . | . . . . . . . . . . . . . . Exploration Rate (%) 53 | 2 75 58 62 93 91 15 64 63 74 51 5 74 17 Regions Visited 13 Branch Regions 8 Pre-discovered Areas 3 | . . . 1 . . . . . 1 1 . . . Known Exits Taken 2 | . . 1 . . . 1 . . . . . . . Unknown Exits Taken 11 | 1 1 . 1 1 1 . 1 1 1 1 1 1 . Scrap Searched 10 | . . . . . 4 . 3 2 . 1 . . . Spaces Dug 38 | . . . 18 . . 1 . . . 16 3 . . Terrain Destroyed 530 | . . 3 37 1 . 33 5 48 . 113 37 190 63 Melee . | . . . . . . . . . . . . . . Projectile 148 | . . 3 4 1 . 7 5 20 . 16 28 54 10 AOE 382 | . . . 33 . . 26 . 28 . 97 9 136 53 Terrain Rammed . | . . . . . . . . . . . . . . Walls Destroyed . | . . . . . . . . . . . . . . Machines Disabled . | . . . . . . . . . . . . . . Actions | -11 -10 -9 -9 -9 -9 -6 -6 -6 -6 -5 -5 -5 -4 --------- Run | Yrd Mat Mat Sto Rec Scr Fac Low Low Dat Pro Fac Ext Fac Total 8131 | . 583 976 587 491 2243 556 469 326 105 261 251 787 496 Wait 481 | . 59 236 106 2 7 9 12 . 1 1 6 30 12 Move 6833 | . 453 619 408 483 2182 494 447 307 104 238 216 506 376 Hop . | . . . . . . . . . . . . . . Pick Up 98 | . 13 17 8 . 16 10 . 1 . 1 2 16 14 Fast Attach 38 | . 6 3 4 1 5 4 1 . . . . 7 7 Attach 42 | . 3 4 2 . 2 6 2 1 . 2 2 13 5 Detach 18 | . 7 . 2 . 4 1 2 . . . . 2 . Swap 69 | . 4 6 7 . 5 9 . 3 . 4 6 15 10 Drop 87 | . 3 18 9 . 22 6 1 . . . 1 10 17 Fire 334 | . 35 69 40 5 . 9 3 14 . 15 18 76 50 Melee . | . . . . . . . . . . . . . . Ram 8 | . . 4 . . . . . . . . . . 4 Kick . | . . . . . . . . . . . . . . Crush 5 | . . . 1 . . . . . . . . 3 1 Escape Stasis 11 | . . . . . . 8 . . . . . 3 . Rewire 106 | . . . . . . . . . . . . 106 . Trap . | . . . . . . . . . . . . . . Miscellaneous 1 | . . . . . . . 1 . . . . . . Route ------- -11/Scrapyard -10/Materials (discovered 2 exits: *Mat x2) -9/Materials (discovered 5 exits: [*Mat] / *Min x2 / *Sto x2) -9/Storage -9/Recycling (discovered 2 exits: [*Fac] / *Scr) -9/Scraptown (discovered 2 exits: *Fac x2) -6/Factory (discovered 2 exits: *Low x2) -6/Lower Caves -6/Lower Caves -6/Data Miner -5/Proximity Caves -5/Factory (discovered 2 exits: Upp / *Ext) -5/Extension (discovered 3 exits: *Fac x2 / [*Cet]) -4/Factory History --------- Turn | Location | Event 1 | -11/Scrapyard | Discovered new exit (range 0) 1 | -11/Scrapyard | Entered Materials 131 | -10/Materials | Discovered new exit (range 14) 309 | -10/Materials | Build established: Mutant 771 | -10/Materials | Discovered new exit (range 13) 1102 | -10/Materials | Entered another Materials area 1102 | -9/Materials | Evolved 2 slots: Propulsion x2 1785 | -9/Materials | Discovered new exit (range 16) 2027 | -9/Materials | Destroyed 7 combat bots 2115 | -9/Materials | Repaired Imp. Light Cannon 2149 | -9/Materials | Repaired Imp. Light Cannon 2248 | -9/Materials | Discovered new exit (range 10) 2258 | -9/Materials | Discovered new exit (range 7) 2289 | -9/Materials | Identified exit to Mines 2289 | -9/Materials | Identified exit to Storage 2532 | -9/Materials | Repaired Lgt. Treads 2559 | -9/Materials | Repaired Lgt. Treads 2586 | -9/Materials | Repaired Lgt. Treads 2608 | -9/Materials | Entered Storage 3164 | -9/Storage | Repaired Imp. Light Cannon 3190 | -9/Storage | Repaired Lgt. Treads 3244 | -9/Storage | Learned location of Armory (-3) 3249 | -9/Storage | Used back door to open Recycling access 3249 | -9/Storage | Discovered new exit (range 5) 3830 | -9/Storage | Entered Recycling 4210 | -9/Recycling | Discovered new exit (range 7) 4716 | -9/Recycling | Core integrity fell below 50% 4945 | -9/Recycling | Scanned before Scraplab entrance 4981 | -9/Recycling | Entered Scraplab 5000 | -9/Recycling | Discovered new exit (range 3) 5007 | -9/Recycling | Entered Scraptown 5022 | -9/Scraptown | System corruption cleaned by C-Scrubber 5649 | -9/Scraptown | Discovered new exit (range 5) 5911 | -9/Scraptown | Visited The Evicted 5977 | -9/Scraptown | Visited CR-KLE's Repair Center 6008 | -9/Scraptown | Visited Fellowship of the Rings 6129 | -9/Scraptown | Visited Artisan Demo Area 6317 | -9/Scraptown | Visited Shadow of the Wyrm 6340 | -9/Scraptown | Visited Assassins FH 6469 | -9/Scraptown | Visited UFD Registry 6469 | -9/Scraptown | Registered with UFD as "Gravboard" 6549 | -9/Scraptown | Visited LU-1G1's Boring Crew 6692 | -9/Scraptown | Visited Junk Cannon Lab 6734 | -9/Scraptown | Found Prototype Special Weapon 6734 | -9/Scraptown | Identified Junk Cannon 6783 | -9/Scraptown | Visited Junk Repository 6876 | -9/Scraptown | Visited Research Penetration Think Tank 7154 | -9/Scraptown | Visited Abandonware Association 7177 | -9/Scraptown | Learned abandonware demo "OVRCLOCK.EXE" 7189 | -9/Scraptown | Learned abandonware demo "TRNCOAT.EXE" 7189 | -9/Scraptown | Learned abandonware demo "POISON.EXE" 7295 | -9/Scraptown | Visited Supply Room 7366 | -9/Scraptown | Visited DA-N13 Charitable Foundation 7382 | -9/Scraptown | Found DCF Scrap (29 items) 7464 | -9/Scraptown | Visited Modified Component R&D 7557 | -9/Scraptown | Visited Scrap Suit Storage 7591 | -9/Scraptown | Visited Derelict Rescue Squad 7786 | -9/Scraptown | CR-KLE repaired 8 parts 8070 | -9/Scraptown | Found Scrap Suit 8484 | -9/Scraptown | Visited IN-MT5's Study 9107 | -9/Scraptown | Discovered new exit (range 5) 9360 | -9/Scraptown | Entered Factory 9360 | -6/Factory | Evolved 6 slots: Propulsion x1, Utility x4, Weapon x1 9585 | -6/Factory | Found Hvy. Reflective Plating 9588 | -6/Factory | Found Hvy. Reflective Plating 9660 | -6/Factory | Build established: Scrapper 9926 | -6/Factory | Discovered new exit (range 7) 10123 | -6/Factory | Identified exit to Lower Caves 10238 | -6/Factory | Entered Lower Caves 10239 | -6/Lower Caves | Activated DRS Beacon 10383 | -6/Lower Caves | Encountered a Warlord checkpoint 10389 | -6/Lower Caves | Learned 4 Factory zone layouts 10585 | -6/Lower Caves | Learned 4 Factory zone layouts 10591 | -6/Lower Caves | Learned location of 1 exit from Factory 10891 | -6/Lower Caves | Discovered new exit (range 9) 10910 | -6/Lower Caves | Entered another Lower Caves area 10980 | -6/Lower Caves | Learned Factory emergency access door positions 11047 | -6/Lower Caves | Spotted B-75 Beast 11349 | -6/Lower Caves | Discovered new exit (range 14) 11377 | -6/Lower Caves | Entered Data Miner 11377 | -6/Data Miner | Discovered new exit (range 6) 11403 | -6/Data Miner | Met Data Miner 11433 | -6/Data Miner | Learned location of Section 7 (-2) 11433 | -6/Data Miner | Acquired the access code to Warlord's prototype stash 11455 | -6/Data Miner | Received God Mode back door access code from Data Miner 11517 | -6/Data Miner | Entered Proximity Caves 11520 | -5/Proximity Caves | Spotter reported a threat 11520 | -5/Proximity Caves | Spotter reported a threat 11657 | -5/Proximity Caves | Spotter reported a threat 11855 | -5/Proximity Caves | Spotted B-75 Beast 11870 | -5/Proximity Caves | Discovered new exit (range 5) 11876 | -5/Proximity Caves | Entered Factory 11876 | -5/Factory | Evolved 2 slots: Propulsion x1, Utility x1 11877 | -5/Factory | Identified exit to Upper Caves 12080 | -5/Factory | Discovered new exit (range 6) 12156 | -5/Factory | Build established: Scavenger-Scrapper 12176 | -5/Factory | Search patrols dispatched 12254 | -5/Factory | Entered Extension 12320 | -5/Extension | Rescued a captive Derelict 12321 | -5/Extension | Rescued a captive Derelict 12341 | -5/Extension | Energy Cycler disabled 12341 | -5/Extension | Rescued a captive Derelict 12342 | -5/Extension | Rescued a captive Derelict 12343 | -5/Extension | Rescued a captive Derelict 12344 | -5/Extension | Rescued a captive Derelict 12347 | -5/Extension | Rescued a captive Derelict 12347 | -5/Extension | Rescued a captive Derelict 12348 | -5/Extension | Rescued a captive Derelict 12348 | -5/Extension | Rescued a captive Derelict 12349 | -5/Extension | Rescued a captive Derelict 12350 | -5/Extension | Rescued a captive Derelict 12554 | -5/Extension | First assault squad dispatched 12718 | -5/Extension | Lost 7 allies 12765 | -5/Extension | Spotted B-75 Beast 12802 | -5/Extension | Destroyed B-75 Beast 12818 | -5/Extension | Spotted B-75 Beast 12825 | -5/Extension | Destroyed B-75 Beast 12830 | -5/Extension | Discovered new exit (range 15) 13134 | -5/Extension | Build established: Scavenger-Gunner 13204 | -5/Extension | Disrupted transfer network 13234 | -5/Extension | Lost 3 parts (1n2u) 13263 | -5/Extension | Destroyed 11 combat bots 13493 | -5/Extension | Discovered new exit (range 10) 13523 | -5/Extension | Discovered new exit (range 7) 13553 | -5/Extension | Entered Factory 13553 | -4/Factory | Accompanied by 2 allies 13553 | -4/Factory | Evolved 2 slots: Power x1, Utility x1 13610 | -4/Factory | Scrapoid reinforcements arrived 13630 | -4/Factory | Found Scrap Suit 13646 | -4/Factory | Lost 3 allies 13665 | -4/Factory | Assembled infested Garrison Access 14053 | -4/Factory | First assault squad dispatched 14118 | -4/Factory | Lost 3 parts (3n) 14231 | -4/Factory | Released all parts (7) 14243 | -4/Factory | Core integrity fell below 50% 14245 | -4/Factory | Destroyed 7 combat bots 14264 | -4/Factory | Core integrity fell below 20% 14277 | -4/Factory | Destroyed by C-35 Carver with Carbide Saw Last Messages --------------- 14238_ S-27 Virus misfires. 14242_ Penetrated by Slug. 14242_ Knocked back. 14244_ K-01 Serf collects debris. 14244_ Knocked back. 14248_ W-44 Eye sends out distress signal. 14252_ Critical hit (Burn: +37). 14254_ Acquired Railgun. 14254_ Knocked back. 14254_ W-44 Eye knocked back. 14254_ C-35 Carver destroyed. 14255_ Imp. Ion Engine destroyed. 14255_ Knocked back. 14259_ O-24 Administrator: "IFF HANDSHAKE FAILED. SECURING TERMINAL." 14259_ U-05 Engineer lays Concrete. 14260_ U-05 Engineer builds a Door. 14264_ P-70 Sage resets S-27 Virus, system corruption cleaned. 14265_ ALERT: Hostiles spotted, dispatching reinforcements to Terminal F018. 14275_ Slammed into C-35 Carver. Map ----- +----------------------------------------------------+ | ?????????????????????????????????????????????????? | | ?????????????????????????????????????????????????? | | ?????????????????????????????????????????????????? | | ?????????????????????????????????????????????????? | | ?????????????????????????????????????????????????? | | ?????????????????????????????????????????????????? | | ?????????????????????????????????????????????????? | | ?????????????????????????????????????????????????? | | ?????????????????????????????????????????????????? | | ?????????????????????????????????????????????????? | | ?????????????????????????????????????????????????? | | ?????????????????????????????????????????????????? | | ?????????????????????????????########+#??????????? | | ?????????????????????????????# != ? ??????????? | | ?????????????????????????????# != ??????????? | | ?????????????????????????????# == """ ""?????????? | | ?????????????????????????????# """ """ ???????? | | ?????????????????????????????# """ """ #??????? | | ??????????????????????######## #??????? | | ??????????????????????# ## """ """ #??????? | | ??????????????????????# " ## ! """ """ #??????? | | ??????????????????????# "To / """ """ #??????? | | ??????????????????????# ## #??????? | | ??????????????????????# ## ! =#??????? | | ??????????????????????###c#### #??????? | | ????????????????????????#@#??#######+######??????? | | ????????????????????????# #??????# +?????????? | | ????????????????????????# #??????# #?????????? | | ????????????????????????# #??????# #?????????? | | ????????????????????????# ##T #### +?????????? | | ????????????????????????# #?????????? | | ????????????????????????# ##### #?????????? | | ????????????????????????# ?????# #?????????? | | ????????????????????????#pA ?????# ^#?????????? | | ????????????????????????# p ?????# #?????????? | | ????????????????????????# ?????# #?????????? | | ????????????????????????# ????# #?????????? | | ??????????????????#?????# ????# #?????????? | | ??????????????????# ##### ????# #?????????? | | ??????????? ?????# ????# #?????????? | | ??????????# ????# ????# #?????????? | | ??????????# ????? ????# #?????????? | | ??????????# ???????? ?#### #?????????? | | ??????????# ??????##+##/ # ## % +?????????? | | ??????????# ??????# #?????????? | | ??????????# ??????# #?????????? | | ??????????# ??????# #?????????? | | ??????????# ###???# !!! # ???? | | ??????????# / !! # ???? | | ? """ ????# ##### !! ! ???? | +----------------------------------------------------+ Best States ------------- Heat Dissipation 105 Energy Generation 33 Energy Capacity 525 Matter Stores 300 Matter Capacity 300 Sight Range 16 Terrain Scan Density 10 Armor Coverage 750 Resistance: TH 30 Propulsion Shielding 33 Weapon Shielding 66 Evasion (%) 55 Targeting Accuracy 6 Core Analysis 6 Armor Integrity Analysis 30 Recoil Reduction 6 Item Schematics ----------------- Cooling System | -9/Materials | Extracted Field Recycling Unit | -9/Materials | Extracted Hrd. Light Armor Plating | -9/Materials | Extracted Terrain Scanner | -9/Materials | Extracted Huge Storage Unit | -9/Materials | Hacked Combat Drone Bay | -6/Data Miner | Free Lgt. Regenerative Plating | -6/Data Miner | Free Enh. Flexi-carbon Leg | -6/Data Miner | Free Prc. Matter Filter | -6/Data Miner | Free Cld. Plasma Rifle | -6/Data Miner | Free Adv. Medium Treads | -6/Data Miner | Free Adv. Cryofiber Web | -6/Data Miner | Free Railgun | -6/Data Miner | Free Imp. Remote Datajack | -6/Data Miner | Free Adv. Thermal Shield | -6/Data Miner | Free Robot Schematics ------------------ B-48 Gladiator | -6/Data Miner | Free G-50 Soldier | -6/Data Miner | Free B-60 Warrior | -6/Data Miner | Free X-72 Disruptor | -6/Data Miner | Free A-27 Freighter | -6/Data Miner | Free Fabricated ------------ Nothing Alien Tech Used ----------------- None Achievements -------------- None Challenges ------------ None Game ------ Seed CloakEnhancedPropulsion Manual? 0 Play Time 02:21:12 Cumulative 131.7 hours Start 2024.08.01 @ 21:21:48 End 2024.08.02 @ 00:01:19 Sessions 1 Manual Loads 0 Difficulty Rogue Special Mode None Game No. 68 Rogue 66 Adventurer 0 Explorer 2 Win Type - Total 8 Types 8/0/0/0/0/0/0/0/0 Lore% 51 Gallery% 66 Achievement% 57 Wizard Run 0 Options --------- Layout 0 ASCII 0 Keyboard 1 Movement Numpad Keybinds 0 Fullscreen 1 Font 24/Smallcaps Map View 76x50 Zoom Use 0% Tactical HUD 1 Map Filters NONE Filters NONE Steam 1 RUN: 33228f7a-e9bb-4e9d-89bc-fcc24d57baaa